Cogmind - Beta 13 @@@ ROGUE MODE // 2024.04.19 @ 00:32:44 Player: Some Pennies Result: Destroyed by as-01236 with Assembled Heavy Rifle Performance ------------- Evolutions (0) 0 Regions Visited (2) 400 Robots Destroyed (21) 105 Value Destroyed (236) 236 Prototype IDs (0) 0 Alien Tech Used (0) 0 Bonus (0) 0 TOTAL SCORE: 741 Bonus ------- None Cogmind --------- Core Integrity 0/250 Matter 171/300 Energy 93/100 System Corruption 0% Temperature Cool (0) Movement Core (100) Ox1 Location -10/Mines Parts ------- > --- POWER (1) -------- (None) > --- PROPULSION (2) --- (None) > --- UTILITY (2) ------ Small Storage Unit Sensor Array > --- WEAPON (2) ------- (None) > --- INVENTORY (8) ---- Light Angular Momentum Engine Signal Interpreter Light Assault Rifle Light Cannon Mining Laser Peak State ------------ > --- POWER ------------ Ion Engine > --- PROPULSION ------- Light Treads Light Treads > --- UTILITY ---------- Small Storage Unit Seismic Detector > --- WEAPON ----------- EM Pulse Gun Assault Rifle > --- INVENTORY -------- Light Ion Engine Light Ion Engine Sensor Array Signal Interpreter Improved Terrain Scanner Light Assault Rifle Light Assault Rifle Mining Laser [Rating: 8] Favorites ----------- Power Ion Engine Engine Ion Engine Propulsion Light Treads Treads Light Treads Utility Small Storage Unit Device Seismic Detector Storage Small Storage Unit Weapon Light Assault Rifle Energy Gun EM Pulse Gun Ballistic Gun Light Assault Rifle Ballistic Cannon Light Cannon Special Weapon Mining Laser Build | -11 -10 -10 ------- Run | Yrd Mat Min Slots Evolved . | . . . Power . | . . . Propulsion . | . . . Utility . | . . . Weapon . | . . . Parts Attached 17 | 7 4 6 Power 3 | 1 . 2 Engine 3 | 1 . 2 Core . | . . . Reactor . | . . . Propulsion 3 | 2 . 1 Treads 3 | 2 . 1 Leg . | . . . Wheel . | . . . Hover . | . . . Flight . | . . . Utility 3 | 2 . 1 Device 2 | 1 . 1 Storage 1 | 1 . . Processor . | . . . Hackware . | . . . Protection . | . . . Artifact . | . . . Weapon 8 | 2 4 2 Energy Gun 1 | 1 . . Energy Cannon . | . . . Ballistic Gun 5 | 1 2 2 Ballistic Cannon 1 | . 1 . Launcher . | . . . Special Weapon 1 | . 1 . Impact Weapon . | . . . Slashing Weapon . | . . . Piercing Weapon . | . . . Special Melee Weapon . | . . . Unidentified Prototypes . | . . . Parts Lost 9 | . . 9 Power 2 | . . 2 Propulsion 3 | . . 3 Utility 1 | . . 1 Weapon 3 | . . 3 Highest Loss Streak 8 | . . 8 To Critical Strikes . | . . . Average Slot Usage (%) 97 | . 99 86 Engine 13 | . 14 12 Treads 27 | . 28 26 Device 12 | . 14 7 Storage 14 | . 14 14 Energy Gun 6 | . 7 . Ballistic Gun 13 | . 13 13 Ballistic Cannon 7 | . 5 13 Naked Turns . | . . . Heaviest Build 15 | 15 15 13 Greatest Support 40 | 40 40 40 Greatest Overweight (x) 1 | . . 1 Average Overweight (x) . | . . . Largest Inventory Capacity 8 | 8 8 8 Average Capacity 7 | 7 8 8 Most Carried 8 | 4 8 8 Average Carried 6 | 1 7 7 Final Capacity 8 | 8 8 8 Final Carried 8 | 4 8 5 Class Distribution -------------------- 100% | Mutant Dominant Class ---------------- Mutant | -10/Materials Mutant | -10/Mines Resources | -11 -10 -10 ----------- Run | Yrd Mat Min Matter Collected 462 | 288 112 62 Remotely . | . . . Salvage Created 652 | 184 395 73 Parts 50 | 15 27 8 Haulers Intercepted 1 | . 1 . Recyclers Shooed 1 | . 1 . Parts Field Recycled . | . . . Retrieved Matter . | . . . Parts Self-Destructed . | . . . Prevented . | . . . Kills | -11 -10 -10 ------- Run | Yrd Mat Min Combat Hostiles Destroyed 14 | . 5 9 Guns 6 | . 5 1 Cannons 8 | . . 8 Classes Destroyed 9 | 3 5 1 Worker 2 | 2 . . Tunneler 4 | 4 . . Hauler 1 | . 1 . Recycler 3 | 1 2 . Operator 1 | . 1 . Watcher 2 | . 2 . Swarmer 6 | . 3 3 Grunt 2 | . 2 . Assembled 6 | . . 6 Best Kill Streak 5 | 5 3 3 Combat Bots Only 3 | . 3 3 Max Kills in Single Turn 3 | 3 2 1 Gunslinging 1 | . 1 . Exploded . | . . . Melee . | . . . Uniques/NPCs Destroyed . | . . . Combat | -11 -10 -10 -------- Run | Yrd Mat Min Hostile Shots Fired 107 | . 37 70 Missed 24 | . 5 19 Damage Taken 1317 | 60 300 957 Core 260 | 14 79 167 Absorbed by Shields . | . . . Core Remaining (%) 94 | 94 . . Volleys Fired 71 | 6 40 25 Largest 2 | 2 2 2 Hottest 100 | 60 100 55 Shots Fired 141 | 12 79 50 Gun 103 | 12 66 25 Cannon 37 | . 12 25 Launcher . | . . . Special 1 | . 1 . Kinetic 107 | 6 51 50 Thermal 1 | . 1 . Explosive . | . . . Electromagnetic 33 | 6 27 . Robot Hit Streak 11 | 8 11 8 Robot Miss Streak 3 | 1 3 2 Penetration Max . | . . . Secondary Targets 2 | . 2 . Max Gunslinging Chain 1 | . 1 . Shots Hit Robots 89 | 10 47 32 Core Hits 41 | 7 17 17 Critical Kills . | . . . Critical Parts Destroyed . | . . . Critical Strikes 1 | . 1 . Blast 1 | . 1 . Melee Attacks . | . . . Impact . | . . . Slashing . | . . . Piercing . | . . . Sneak Attacks . | . . . Combat Hostiles . | . . . Follow-up Attacks . | . . . Damage Inflicted 1366 | 269 683 414 Guns 721 | 144 459 118 Cannons 472 | . 176 296 Explosions 173 | 125 48 . Melee . | . . . Ramming . | . . . Kinetic 855 | 64 377 414 Thermal 173 | 125 48 . Explosive . | . . . Electromagnetic 338 | 80 258 . Impact . | . . . Slashing . | . . . Piercing . | . . . Highest Corruption . | . . . Average Corruption . | . . . Corruption Purged . | . . . Corruption Blocked . | . . . Overload Shots . | . . . Overflow Damage 43 | 23 19 1 Projectiles 11 | . 10 1 Explosions 32 | 23 9 . Melee . | . . . Knockbacks 9 | . 2 7 Impact . | . . . Kinetic 8 | . 2 6 Secondary 1 | . . 1 Self-Inflicted Damage 60 | 60 . . Shots 2 | 2 . . Rammed . | . . . Targets Rammed . | . . . Kicked . | . . . Crushed . | . . . Highest Temperature 106 | 12 106 84 Average Temperature 27 | 12 33 22 Received Heat Transfer 190 | . 90 100 Siege Activations . | . . . Robots Corrupted . | . . . Combat Hostiles . | . . . Parts Fried . | . . . Impact Corruptions . | . . . Robots Melted . | . . . Combat Hostiles . | . . . Parts Melted 1 | 1 . . Heat Transferred 200 | 150 50 . Parts Sabotaged . | . . . Parts Stolen . | . . . Parts Stripped . | . . . Power Chain Reactions 3 | 2 1 . Alert | -11 -10 -10 ------- Run | Yrd Mat Min Peak Influence 183 | 35 183 94 Initial 24 | . 22 24 Average 85 | 12 96 79 Maximum Alert Level . | . . . Low Security (%) 100 | 100 100 100 Level 1 . | . . . Level 2 . | . . . Level 3 . | . . . Level 4 . | . . . Level 5 . | . . . High Security . | . . . Max Security . | . . . Squads Dispatched 2 | . 2 . Investigation 1 | . 1 . Extermination . | . . . Reinforcement 1 | . 1 . Assault . | . . . Garrison . | . . . Intercept . | . . . Searches Triggered . | . . . Construction Impeded . | . . . Haulers Reinforced . | . . . Active Scanning Responses . | . . . Cargo Convoy Interrupts . | . . . Stealth | -11 -10 -10 --------- Run | Yrd Mat Min Distress Signals 1 | . 1 . Communications Jammed . | . . . Distress Signals . | . . . Times Spotted 35 | . 13 22 Peak Tracking Total 7 | . 4 7 Tactical Retreats 1 | . . 1 Traps | -11 -10 -10 ------- Run | Yrd Mat Min Traps Triggered 1 | . 1 . Indirectly . | . . . Trap Hack Attempts . | . . . Triggered . | . . . Disarmed . | . . . Reprogrammed . | . . . Reused . | . . . Traps Extracted . | . . . Installed . | . . . Triggered . | . . . Machines | -11 -10 -10 ---------- Run | Yrd Mat Min Machines Disabled 1 | . 1 . Max in Single Turn 1 | . 1 . Machines Repaired . | . . . Machines Dismantled . | . . . Machines Sabotaged . | . . . Overloaded Fab Kills . | . . . Hacking | -11 -10 -10 --------- Run | Yrd Mat Min Machines Accessed 2 | . 2 . Terminals 2 | . 2 . Fabricators . | . . . Repair Stations . | . . . Recycling Units . | . . . Scanalyzers . | . . . Garrison Access . | . . . Total Hacks 6 | . 6 . Successful 3 | . 3 . Failed 3 | . 3 . Catastrophic . | . . . Database Lockouts . | . . . Manual 4 | . 4 . Terminals 6 | . 6 . Fabricators . | . . . Repair Stations . | . . . Recycling Units . | . . . Scanalyzers . | . . . Garrison Access . | . . . Terminal Hacks 3 | . 3 . Locate Traps 1 | . 1 . Zone Layout 2 | . 2 . Fabricator Hacks . | . . . Repair Station Hacks . | . . . Recycling Unit Hacks . | . . . Scanalyzer . | . . . Garrison Access Hacks . | . . . Unauthorized Hacks . | . . . Terminals . | . . . Fabricators . | . . . Repair Stations . | . . . Recycling Units . | . . . Scanalyzers . | . . . Garrison Access . | . . . Data Cores Recovered . | . . . Used . | . . . Hacking Detections 2 | . 2 . Full Trace Events . | . . . Feedback Events . | . . . Feedback Blocked . | . . . Robot Schematics Acquired . | . . . Robots Built . | . . . Authchips . | . . . Time . | . . . Total Robot Build Rating . | . . . Part Schematics Acquired . | . . . Parts Built . | . . . Authchips . | . . . Time . | . . . Total Part Build Rating . | . . . Parts Repaired . | . . . Time . | . . . Parts Recycled . | . . . Recycled Matter . | . . . Retrieved Matter . | . . . Retrieved Components . | . . . Parts Scanalyzed . | . . . Part Schematics Acquired . | . . . Parts Damaged . | . . . Bothacking | -11 -10 -10 ------------ Run | Yrd Mat Min Used RIF Installer . | . . . Robots Hacked . | . . . Non-combat . | . . . Combat . | . . . Robot Hacks Applied . | . . . Relay Couplers Released . | . . . Fabnet Peak Effective % . | . . . Robots Rewired . | . . . Allies Hacked . | . . . Hacks Repelled . | . . . Allies | -11 -10 -10 -------- Run | Yrd Mat Min Total Allies . | . . . Largest Group . | . . . Highest-Rated Group . | . . . Highest-Rated Ally . | . . . Total Orders . | . . . Ally Attacks . | . . . Total Damage . | . . . Kills . | . . . Allies Corrupted . | . . . Allies Melted . | . . . Intel | -11 -10 -10 ------- Run | Yrd Mat Min Robot Analysis Total . | . . . Derelict Logs Recovered . | . . . Drone Launches . | . . . Drone Recoveries . | . . . Exploration | -11 -10 -10 ------------- Run | Yrd Mat Min Turns Passed 1037 | 111 780 146 Spaces Moved 490 | 50 398 42 Core 5 | 4 . 1 Treads 485 | 46 398 41 Legs . | . . . Wheels . | . . . Hover . | . . . Flight . | . . . Fastest Speed 50 | 50 160 100 Average Speed 158 | 151 160 158 Slowest Speed 160 | 160 160 160 Overloaded Moves . | . . . Propulsion Burnouts . | . . . Robots Hopped . | . . . Cave-ins Triggered . | . . . Exploration Rate (%) 27 | 5 59 19 Regions Visited 2 Branch Regions 1 Pre-discovered Areas . | . . . Known Exits Taken . | . . . Unknown Exits Taken 2 | 1 1 . Scrap Searched . | . . . Spaces Dug 1 | . 1 . Terrain Destroyed 13 | 6 7 . Melee . | . . . Projectile 1 | . 1 . AOE 12 | 6 6 . Terrain Rammed . | . . . Walls Destroyed . | . . . Machines Disabled . | . . . Actions | -11 -10 -10 --------- Run | Yrd Mat Min Total 615 | 73 465 77 Wait 13 | . 13 . Move 488 | 49 397 42 Hop . | . . . Pick Up 20 | 11 7 2 Fast Attach 1 | . 1 . Attach 11 | 7 . 4 Detach . | . . . Swap 5 | . 3 2 Drop 6 | . 4 2 Fire 71 | 6 40 25 Melee . | . . . Ram . | . . . Kick . | . . . Crush . | . . . Escape Stasis . | . . . Rewire . | . . . Trap . | . . . Miscellaneous . | . . . Route ------- -11/Scrapyard -10/Materials (discovered 3 exits: [*Mat] / [*Min x2]) -10/Mines History --------- Turn | Location | Event 2 | -11/Scrapyard | Met Revision 17 18 | -11/Scrapyard | Discovered new exit (range 16) 112 | -11/Scrapyard | Entered Materials 237 | -10/Materials | Discovered new exit (range 13) 306 | -10/Materials | Build established: Mutant 765 | -10/Materials | Discovered new exit (range 4) 802 | -10/Materials | Discovered new exit (range 9) 892 | -10/Materials | Entered Mines 893 | -10/Mines | Assembled infested the area 899 | -10/Mines | Met a Derelict bent on vengeance 1016 | -10/Mines | Core integrity fell below 50% 1028 | -10/Mines | Core integrity fell below 20% 1038 | -10/Mines | Destroyed by as-01236 with Assembled Heavy Rifle Last Messages --------------- 01000_ as-90234 destroyed. 01005_ as-31878 knocked back. 01008_ as-31878 destroyed. 01014_ D-53 Grenadier knocked back. 01015_ as-75632 destroyed. 01015_ as-53039 destroyed. 01016_ Lgt. Treads destroyed. 01017_ Lgt. Ion Engine destroyed. 01017_ as-12991 destroyed. 01019_ The unstable cave ceiling collapses. 01021_ Lgt. Cannon destroyed. 01021_ Lgt. Treads destroyed. 01025_ as-24713 destroyed. 01027_ Lgt. Ion Engine destroyed. 01029_ Assault Rifle destroyed. 01029_ Lgt. Assault Rifle destroyed. 01029_ D-53 Grenadier destroyed. 01033_ The unstable cave ceiling collapses. 01037_ Lgt. Treads destroyed. 01038_ Acquired Lgt. Angular Momentum Engine. Map ----- +----------------------------------------------------+ | | | | | | | | | | | | | | | ??????????????????????????????????????? | | ??????????????????????????????????????? | | ??????????????????????????????????????? | | ??????????????????????????????????????? | | ????????????????????? ??????????????? | | ??????????????????# ??????????????? | | ?????????????????## ??????????????? | | ?#######?????????# ??????????????? | | ?# = %#?????????# ??????????????? | | ?# = #?????????? ###???????????? | | ?#=[** #??????????# ##??????????? | | ?#[ = #??????????# ##?????????? | | ?# #??????????# ##????????? | | ?### ###???????????# ##???????? | | ???# #??????????????# ##??????? | | ???# #??????????????#a #??????? | | ???# #####?########## #??????? | | ???# #?# #???????? | | ???##### #?# #???????# @%#??????????? | | ???????# ### ########## ##??????????? | | #??????# ## ## # #???????????? | | # ###?# ## % # #???????????? | | ## # #???????????? | | ##??????????? | | # ##### #??????????? | | ## " #????# #????? | | ?####?????## #?????? | | ???????????## d ### ##?????? | | ????????????##%* # a ##??###??????? | | ????????????# ####a #????????????? | | ????????????# #???## #????????????? | | ???????????? %#????#! #????????????? | | ?????????????# ?????%= a#????????????? | | ?????????????# ?????## ##????????????? | | ?????????????# ???????|!#?????????????? | | ?????????????#%???????!%#?????????????? | | ?????????????#%???????!=#?????????????? | | ?????????????? ??????? ?????????????? | | ?????????????? ???????? ??????????????? | | ??????????????????????????????????????? | | ??????????????????????????????????????? | | ??????????????????????????????????????? | | ??????????????????????????????????????? | +----------------------------------------------------+ Best States ------------- Heat Dissipation 25 Energy Generation 10 Energy Capacity 250 Matter Stores 300 Matter Capacity 300 Sight Range 16 Robot Scan Range 14 Terrain Scan Density 10 Evasion (%) 40 Recoil Reduction 2 Item Schematics ----------------- None Robot Schematics ------------------ None Fabricated ------------ Nothing Alien Tech Used ----------------- None Achievements -------------- None Challenges ------------ None Game ------ Seed ControlCloakingGuard Manual? 0 Play Time 00:13:49 Cumulative 19.5 hours Start 2024.04.19 @ 00:16:02 End 2024.04.19 @ 00:32:44 Sessions 3 Manual Loads 0 Difficulty Rogue Special Mode None Game No. 16 Rogue 11 Adventurer 5 Explorer 0 Win Type - Total 0 Types 0/0/0/0/0/0/0/0/0 Lore% 21 Gallery% 23 Achievement% 19 Wizard Run 0 Options --------- Layout 2 ASCII 0 Keyboard 0 Movement Mouse Keybinds 0 Fullscreen 2 Font 24/Smallcaps Map View 50x44 Zoom Use 7% Tactical HUD 1 Map Filters NONE Filters NONE Steam 1 RUN: dca9185f-f4d8-491d-a355-6e1bdf468303